[Event "ESTCC 50 2019"]
[Site "Mali Losinj"]
[Date "2019.09.20"]
[Round "3.21"]
[White "Wallace, Paul"]
[Black "Burchardt, Brigitte"]
[Result "1-0"]
[ECO "B99"]
[WhiteElo "2153"]
[BlackElo "2092"]
[Annotator "ChessBase"]
[PlyCount "131"]
[EventDate "2019.09.18"]
[EventType "team-tourn"]
[EventCountry "CRO"]
[SourceTitle "playchess.com"]
[Source "ChessBase"]
[SourceQuality "1"]
[WhiteTeam "IRL"]
[BlackTeam "GER"]
[WhiteTeamCountry "AUS"]
[BlackTeamCountry "GER"]
[TimeControl "40/5400+30:1800+30"]

1. e4 {[%emt 0:00:30]} c5 {[%emt 0:00:30]} 2. Nf3 {[%emt 0:00:00]} d6 {[%emt 0:00:00]} 3. d4 {[%emt 0:00:00]} cxd4 {[%emt 0:00:00]} 4. Nxd4 {[%emt 0:00:00]} Nf6 {[%emt 0:00:00]} 5. Nc3 {[%emt 0:00:00]} a6 {[%emt 0:00:00]} 6. Bg5 {[%emt 0:01:30]} Nbd7 {[%emt 0:01:30]} 7. f4 {[%emt 0:00:00]} e6 {[%emt 0:05:30]} 8. Qf3 {[%emt 0:01:00]} Qc7 {[%emt 0:08:30]} 9. O-O-O {[%emt 0:00:30]} Be7 {[%emt 0:03:30]} 10. Bd3 {[%emt 0:06:30]} h6 {[%emt 0:09:30]} 11. Bh4 {[%emt 0:03:30]} Nb6 {[%emt 0:05:30]} 12. Bf2 {[%emt 0:19:30]} Bd7 {[%emt 0:04:30]} 13. Rhe1 {[%emt 0:05:30]} O-O-O {[%emt 0:08:30]} 14. Kb1 {[%emt 0:05:30]} g6 {[%emt 0:07:30]} 15. Qe2 {[%emt 0:04:30]} Na4 {[%emt 0:11:30]} 16. Nxa4 {[%emt 0:00:30]} Bxa4 {[%emt 0:00:30]} 17. Bxa6 {[%emt 0:03:30]} d5 {[%emt 0:02:30]} 18. Bb5 {[%emt 0:07:30]} Bxb5 {[%emt 0:05:30]} 19. Nxb5 {[%emt 0:00:00]} Qa5 {[%emt 0:00:30]} 20. exd5 {[%emt 0:05:00]} Nxd5 {[%emt 0:05:21]} 21. Bd4 {[%emt 0:02:30]} Rhg8 {[%emt 0:05:04]} 22. Be5 {[%emt 0:04:30]} Rd7 {[%emt 0:04:49]} 23. c4 {[%emt 0:10:30]} Nb6 {[%emt 0:04:39]} 24. Rxd7 {[%emt 0:02:42]} Nxd7 {[%emt 0:00:07]} 25. Rd1 {[%emt 0:01:35]} Nxe5 {[%emt 0:03:02]} 26. Qxe5 {[%emt 0:00:14]} Qb6 {[%emt 0:00:23]} 27. Nd6+ {[%emt 0:02:44]} Bxd6 {[%emt 0:00:06]} 28. Qxd6 {[%emt 0:00:01]} Qxd6 {[%emt 0:00:30]} 29. Rxd6 {[%emt 0:00:06]} Kc7 {[%emt 0:00:09]} 30. Rd2 {[%emt 0:00:23]} g5 {[%emt 0:00:19]} 31. fxg5 {[%emt 0:01:30]} Rxg5 {[%emt 0:00:33]} 32. Kc2 {[%emt 0:00:34]} f5 {[%emt 0:03:33]} 33. g3 {[%emt 0:00:36]} h5 {[%emt 0:00:04]} 34. Kc3 {[%emt 0:01:49]} h4 {[%emt 0:01:46]} 35. Rd3 {[%emt 0:02:07]} hxg3 {[%emt 0:00:10]} 36. hxg3 {[%emt 0:00:10]} e5 {[%emt 0:00:09]} 37. Kb4 {[%emt 0:02:10]} f4 {[%emt 0:01:02]} 38. gxf4 {[%emt 0:00:18]} exf4 {[%emt 0:00:05]} 39. Rf3 {[%emt 0:02:18]} Rg2 {[%emt 0:00:31]} 40. b3 {[%emt 0:00:37]} Rxa2 {[%emt 0:00:34]} 41. Rxf4 {[%emt 0:00:06]} Rh2 {[%emt 0:05:04]} 42. Rf7+ {[%emt 0:01:30]} Kc6 {[%emt 0:02:30]} 43. Rf6+ {[%emt 0:00:00]} Kc7 {[%emt 0:00:30]} 44. Kb5 {[%emt 0:00:00]} Rh5+ {[%emt 0:02:30]} 45. c5 {[%emt 0:00:30]} Rh3 {[%emt 0:01:30]} 46. Rf7+ {[%emt 0:00:30]} Kb8 {[%emt 0:01:30]} 47. b4 {[%emt 0:00:30]} Rh6 {[%emt 0:00:30]} 48. Rd7 {[%emt 0:01:30]} Kc8 {[%emt 0:01:30]} 49. Rd6 {[%emt 0:00:30]} Rh4 {[%emt 0:00:39]} 50. Ka5 {[%emt 0:00:00]} Rc4 {[%emt 0:01:21]} 51. Rh6 {[%emt 0:02:00]} Kc7 {[%emt 0:01:41]} 52. Rh7+ {[%emt 0:01:30]} Kc8 {[%emt 0:03:53]} 53. b5 {[%emt 0:04:30]} Rxc5 {[%emt 0:03:21]} 54. Kb6 {[%emt 0:00:30]} Rg5 {[%emt 0:01:03]} 55. Rh8+ {[%emt 0:00:30]} Kd7 {[%emt 0:00:06]} 56. Rb8 {[%emt 0:00:00]} Rh5 {[%emt 0:02:04]} 57. Rxb7+ {[%emt 0:00:00]} Kc8 {[%emt 0:00:04]} 58. Ka7 {[%emt 0:00:30]} Rh1 {[%emt 0:01:26]} 59. Rb8+ {[%emt 0:00:30]} Kc7 {[%emt 0:01:06]} 60. b6+ {[%emt 0:00:00]} Kc6 {[%emt 0:00:18]} 61. Rc8+ {[%emt 0:00:00]} Kd7 {[%emt 0:01:05]} 62. Rc2 {[%emt 0:02:30]} Kd6 {[%emt 0:00:46]} 63. b7 {[%emt 0:02:30]} Ra1+ {[%emt 0:01:17]} 64. Kb8 {[%emt 0:00:00]} Rh1 {[%emt 0:00:53]} 65. Ra2 {[%emt 0:01:00]} Kc6 {[%emt 0:03:17]} 66. Ka8 {[%emt 0:00:30]} 1-0

[Event "ESTCC 50 2019"]
[Site "Mali Losinj"]
[Date "2019.09.20"]
[Round "3.22"]
[White "Wagner-Michel, Annett"]
[Black "Cafolla, Peter"]
[Result "0-1"]
[ECO "B30"]
[WhiteElo "2055"]
[BlackElo "1919"]
[Annotator "NA"]
[PlyCount "66"]
[EventDate "2019.09.18"]
[EventType "team-tourn"]
[EventCountry "CRO"]
[SourceTitle "playchess.com"]
[Source "ChessBase"]
[SourceQuality "1"]
[WhiteTeam "Germany"]
[BlackTeam "Ireland"]
[WhiteTeamCountry "GER"]
[BlackTeamCountry "IRL"]
[TimeControl "40/5400+30:1800+30"]

1. e4 {[%emt 0:00:30]} c5 {[%emt 0:00:30]} 2. Nf3 {[%emt 0:00:00]} Nc6 {[%emt 0:00:00]} 3. Bb5 {[%emt 0:00:00]} e6 {[%emt 0:00:00]} 4. O-O {[%emt 0:00:30]} Nge7 {[%emt 0:00:30]} 5. d4 {[%emt 0:00:00]} Qb6 {[%emt 0:00:30]} 6. Bxc6 {[%emt 0:02:00]} bxc6 {[%emt 0:03:30]} 7. dxc5 {[%emt 0:07:30]} Qxc5 {[%emt 0:00:00]} 8. b3 {[%emt 0:00:30]} d5 {[%emt 0:03:00]} 9. Re1 {[%emt 0:05:30]} Bb7 {[%emt 0:02:30]} 10. e5 {[%emt 0:08:30]} Qa5 {[%emt 0:02:30]} 11. c4 {[%emt 0:13:30]} Ng6 {[%emt 0:02:30]} 12. Bd2 {[%emt 0:07:30]} Bb4 {[%emt 0:11:30]} 13. a3 {[%emt 0:05:30]} Bxd2 {[%emt 0:00:30]} 14. Nbxd2 {[%emt 0:00:30]} O-O {[%emt 0:04:30]} 15. b4 {[%emt 0:00:30]} Qd8 {[%emt 0:00:30]} 16. c5 {[%emt 0:03:30]} Bc8 {[%emt 0:09:30]} 17. Nd4 {[%emt 0:04:30]} Qc7 {[%emt 0:02:30]} 18. N2f3 {[%emt 0:01:30]} Bd7 {[%emt 0:00:30]} 19. g3 {[%emt 0:09:30]} Rae8 {[%emt 0:05:30]} 20. Qe2 {[%emt 0:05:30]} f6 {[%emt 0:00:30]} 21. Rac1 {[%emt 0:01:30]} Qb7 {[%emt 0:05:30]} 22. h4 {[%emt 0:02:30]} a6 {[%emt 0:00:30]} 23. Rc3 {[%emt 0:01:24]} fxe5 {[%emt 0:19:30]} 24. Nxe5 {[%emt 0:00:05]} Nxe5 {[%emt 0:00:30]} 25. Qxe5 {[%emt 0:00:05]} Rf6 {[%emt 0:00:30]} 26. f4 {[%emt 0:04:26]} Rf5 {[%emt 0:07:42]} 27. Qd6 {[%emt 0:05:19]} Rf6 {[%emt 0:00:19]} 28. Re5 {[%emt 0:00:21]} Qc8 {[%emt 0:01:35]} 29. Rce3 {[%emt 0:01:02]} Rd8 {[%emt 0:00:15]} 30. Nxe6 {[%emt 0:03:19]} Bxe6 {[%emt 0:01:30]} 31. Qxd8+ {[%emt 0:05:06]} Qxd8 {[%emt 0:00:11]} 32. f5 {[%emt 0:00:08]} Bd7 {[%emt 0:01:34]} 33. g4 {[%emt 0:00:20]} h5 {[%emt 0:01:25]} 0-1

[Event "ESTCC 50 2019"]
[Site "Mali Losinj"]
[Date "2019.09.20"]
[Round "3.23"]
[White "Lyons, Brendan"]
[Black "Kierzek, Mira"]
[Result "1-0"]
[ECO "A04"]
[WhiteElo "1971"]
[BlackElo "2015"]
[Annotator "NA"]
[PlyCount "67"]
[EventDate "2019.09.18"]
[EventType "team-tourn"]
[EventCountry "CRO"]
[SourceTitle "playchess.com"]
[Source "ChessBase"]
[SourceQuality "1"]
[WhiteTeam "Ireland"]
[BlackTeam "Germany"]
[WhiteTeamCountry "IRL"]
[BlackTeamCountry "GER"]
[TimeControl "40/5400+30:1800+30"]

1. e4 {[%emt 0:00:30]} c5 {[%emt 0:00:30]} 2. Nf3 {[%emt 0:00:30]} Nc6 {[%emt 0:00:00]} 3. d3 {[%emt 0:00:00]} d6 {[%emt 0:01:00]} 4. g3 {[%emt 0:00:00]} g6 {[%emt 0:00:30]} 5. Bg2 {[%emt 0:00:30]} Bg7 {[%emt 0:00:30]} 6. O-O {[%emt 0:00:00]} e6 {[%emt 0:01:30]} 7. c3 {[%emt 0:02:00]} Nge7 {[%emt 0:03:30]} 8. Be3 {[%emt 0:04:30]} O-O {[%emt 0:00:30]} 9. d4 {[%emt 0:02:30]} b6 {[%emt 0:07:30]} 10. a3 {[%emt 0:17:30]} Bb7 {[%emt 0:09:30]} 11. b4 {[%emt 0:02:30]} c4 {[%emt 0:09:30]} 12. Nbd2 {[%emt 0:12:30]} d5 {[%emt 0:06:30]} 13. e5 {[%emt 0:04:30]} h6 {[%emt 0:05:30]} 14. g4 {[%emt 0:12:30]} Kh7 {[%emt 0:06:30]} 15. h4 {[%emt 0:02:30]} Qd7 {[%emt 0:04:30]} 16. h5 {[%emt 0:15:30]} Rae8 {[%emt 0:16:30]} 17. Bh3 {[%emt 0:07:07]} Bc8 {[%emt 0:02:30]} 18. Kg2 {[%emt 0:01:00]} Rg8 {[%emt 0:14:18]} 19. Rh1 {[%emt 0:05:30]} Rh8 {[%emt 0:00:21]} 20. Qc2 {[%emt 0:02:17]} Kg8 {[%emt 0:01:15]} 21. b5 {[%emt 0:00:24]} Nd8 {[%emt 0:01:54]} 22. g5 {[%emt 0:00:45]} Nf5 {[%emt 0:00:46]} 23. Bxf5 {[%emt 0:00:29]} exf5 {[%emt 0:02:56]} 24. hxg6 {[%emt 0:01:18]} hxg5 {[%emt 0:02:30]} 25. Rxh8+ {[%emt 0:00:20]} Bxh8 {[%emt 0:00:15]} 26. Nxg5 {[%emt 0:01:24]} fxg6 {[%emt 0:00:18]} 27. Ndf3 {[%emt 0:00:39]} Nf7 {[%emt 0:00:53]} 28. Rh1 {[%emt 0:00:16]} Nxg5 {[%emt 0:00:19]} 29. Nxg5 {[%emt 0:00:11]} Re7 {[%emt 0:00:36]} 30. Bf4 {[%emt 0:02:07]} Qxb5 {[%emt 0:00:14]} 31. Qe2 {[%emt 0:00:48]} Bf6 {[%emt 0:00:25]} 32. exf6 {[%emt 0:01:03]} Rxe2 {[%emt 0:00:13]} 33. f7+ {[%emt 0:00:07]} Kf8 {[%emt 0:01:51]} 34. Bd6+ {[%emt 0:00:00]} 1-0

[Event "ESTCC 50 2019"]
[Site "Mali Losinj"]
[Date "2019.09.20"]
[Round "3.24"]
[White "Leib, Britta"]
[Black "Salter, David"]
[Result "0-1"]
[ECO "C04"]
[WhiteElo "1883"]
[BlackElo "1882"]
[Annotator "NA"]
[PlyCount "91"]
[EventDate "2019.09.18"]
[EventType "team-tourn"]
[EventCountry "CRO"]
[SourceTitle "playchess.com"]
[Source "ChessBase"]
[SourceQuality "1"]
[WhiteTeam "Germany"]
[BlackTeam "Ireland"]
[WhiteTeamCountry "GER"]
[BlackTeamCountry "IRL"]
[TimeControl "40/5400+30:1800+30"]

1. e4 {[%emt 0:00:30]} e6 {[%emt 0:00:30]} 2. d4 {[%emt 0:00:00]} d5 {[%emt 0:00:00]} 3. Nd2 {[%emt 0:00:00]} Nc6 {[%emt 0:00:00]} 4. Ngf3 {[%emt 0:01:30]} Nf6 {[%emt 0:00:30]} 5. e5 {[%emt 0:02:30]} Nd7 {[%emt 0:00:30]} 6. c3 {[%emt 0:01:30]} f6 {[%emt 0:01:30]} 7. exf6 {[%emt 0:00:30]} Qxf6 {[%emt 0:00:30]} 8. Bb5 {[%emt 0:08:30]} Bd6 {[%emt 0:01:30]} 9. O-O {[%emt 0:07:30]} O-O {[%emt 0:00:30]} 10. Qe2 {[%emt 0:05:30]} e5 {[%emt 0:04:30]} 11. Bxc6 {[%emt 0:08:30]} bxc6 {[%emt 0:00:30]} 12. dxe5 {[%emt 0:00:30]} Nxe5 {[%emt 0:00:00]} 13. Nxe5 {[%emt 0:05:30]} Bxe5 {[%emt 0:02:00]} 14. Nf3 {[%emt 0:03:30]} Bd6 {[%emt 0:01:30]} 15. Nd4 {[%emt 0:01:30]} Bd7 {[%emt 0:04:30]} 16. Be3 {[%emt 0:05:30]} Rae8 {[%emt 0:01:30]} 17. Qd2 {[%emt 0:03:30]} Qe5 {[%emt 0:12:30]} 18. g3 {[%emt 0:07:30]} Qh5 {[%emt 0:06:30]} 19. f4 {[%emt 0:09:30]} Re4 {[%emt 0:08:30]} 20. Nc2 {[%emt 0:05:30]} Rfe8 {[%emt 0:03:30]} 21. Rfe1 {[%emt 0:03:56]} a5 {[%emt 0:13:30]} 22. Rac1 {[%emt 0:03:53]} c5 {[%emt 0:04:30]} 23. Rcd1 {[%emt 0:00:28]} d4 {[%emt 0:10:30]} 24. cxd4 {[%emt 0:07:44]} cxd4 {[%emt 0:00:30]} 25. Bf2 {[%emt 0:00:03]} Re2 {[%emt 0:03:31]} 26. Qd3 {[%emt 0:02:10]} c5 {[%emt 0:16:39]} 27. Rxe2 {[%emt 0:03:47]} Qxe2 {[%emt 0:00:35]} 28. Qb3+ {[%emt 0:01:09]} Be6 {[%emt 0:01:59]} 29. Qd3 {[%emt 0:00:01]} Qxd3 {[%emt 0:00:23]} 30. Rxd3 {[%emt 0:00:01]} Bxa2 {[%emt 0:00:31]} 31. Ra3 {[%emt 0:00:27]} Bc4 {[%emt 0:00:26]} 32. Rxa5 {[%emt 0:01:10]} Re2 {[%emt 0:00:21]} 33. Na3 {[%emt 0:00:28]} Be6 {[%emt 0:00:54]} 34. Ra6 {[%emt 0:00:20]} Be7 {[%emt 0:00:16]} 35. Kf1 {[%emt 0:01:11]} Re4 {[%emt 0:00:21]} 36. Be1 {[%emt 0:01:14]} Kf7 {[%emt 0:00:10]} 37. Kf2 {[%emt 0:00:23]} d3 {[%emt 0:00:40]} 38. Bc3 {[%emt 0:00:35]} Re2+ {[%emt 0:00:13]} 39. Kf3 {[%emt 0:00:36]} h5 {[%emt 0:00:49]} 40. f5 {[%emt 0:00:22]} Bxf5 {[%emt 0:00:31]} 41. Kf4 {[%emt 0:30:01]} Be6 {[%emt 0:30:54]} 42. h4 {[%emt 0:00:50]} d2 {[%emt 0:00:00]} 43. Bxd2 {[%emt 0:00:00]} Rxd2 {[%emt 0:00:00]} 44. Rb6 {[%emt 0:00:00]} Bf6 {[%emt 0:00:00]} 45. Nb1 {[%emt 0:00:00]} Rd8 {[%emt 0:00:00]} 46. Ke4 {[%emt 0:00:00]} 0-1

[Event "ESTCC 50 2019"]
[Site "Mali Losinj"]
[Date "2019.09.21"]
[Round "4.1"]
[White "Kozul, Zdenko"]
[Black "Blatny, Pavel"]
[Result "1-0"]
[ECO "D30"]
[WhiteElo "2569"]
[BlackElo "2325"]
[Annotator "ChessBase"]
[PlyCount "87"]
[EventDate "2019.09.18"]
[EventType "team-tourn"]
[EventCountry "CRO"]
[SourceTitle "playchess.com"]
[Source "ChessBase"]
[SourceQuality "1"]
[WhiteTeam "Croatia"]
[BlackTeam "Czech Republic"]
[WhiteTeamCountry "CRO"]
[BlackTeamCountry "CZE"]
[TimeControl "40/5400+30:1800+30"]

1. d4 {[%emt 0:00:30]} d5 {[%emt 0:00:30]} 2. c4 {[%emt 0:00:00]} e6 {[%emt 0:00:30]} 3. Nf3 {[%emt 0:01:00]} c6 {[%emt 0:00:30]} 4. Nbd2 {[%emt 0:02:30]} f5 {[%emt 0:00:30]} 5. g3 {[%emt 0:00:30]} Bd6 {[%emt 0:00:00]} 6. Bg2 {[%emt 0:00:00]} Qf6 {[%emt 0:00:00]} 7. Rb1 {[%emt 0:11:00]} Nh6 {[%emt 0:00:30]} 8. b4 {[%emt 0:02:30]} Nf7 {[%emt 0:00:00]} 9. b5 {[%emt 0:00:30]} g5 {[%emt 0:00:00]} 10. Qb3 {[%emt 0:06:30]} O-O {[%emt 0:00:30]} 11. e3 {[%emt 0:03:30]} Qe7 {[%emt 0:07:30]} 12. h4 {[%emt 0:04:30]} g4 {[%emt 0:07:30]} 13. Ng1 {[%emt 0:00:30]} Nd7 {[%emt 0:01:30]} 14. Ne2 {[%emt 0:01:30]} Nf6 {[%emt 0:01:30]} 15. O-O {[%emt 0:03:30]} Bd7 {[%emt 0:04:30]} 16. Rd1 {[%emt 0:12:30]} Ne4 {[%emt 0:03:30]} 17. Nxe4 {[%emt 0:01:30]} fxe4 {[%emt 0:00:30]} 18. Bd2 {[%emt 0:02:30]} Rac8 {[%emt 0:07:30]} 19. bxc6 {[%emt 0:03:30]} bxc6 {[%emt 0:06:30]} 20. Bb4 {[%emt 0:02:30]} Qf6 {[%emt 0:01:30]} 21. Nf4 {[%emt 0:01:30]} Rb8 {[%emt 0:10:30]} 22. Qc3 {[%emt 0:08:30]} Bxb4 {[%emt 0:03:30]} 23. Rxb4 {[%emt 0:00:30]} e5 {[%emt 0:00:30]} 24. Rxb8 {[%emt 0:04:30]} Rxb8 {[%emt 0:00:30]} 25. Ne2 {[%emt 0:01:30]} Be6 {[%emt 0:05:30]} 26. cxd5 {[%emt 0:01:30]} Bxd5 {[%emt 0:00:30]} 27. Qa3 {[%emt 0:01:30]} exd4 {[%emt 0:03:30]} 28. exd4 {[%emt 0:05:55]} Qd6 {[%emt 0:06:30]} 29. Qxa7 {[%emt 0:02:01]} Rb2 {[%emt 0:00:30]} 30. Qa6 {[%emt 0:02:23]} Qe6 {[%emt 0:07:30]} 31. Nf4 {[%emt 0:02:11]} Qf5 {[%emt 0:02:03]} 32. Qa8+ {[%emt 0:01:12]} Kg7 {[%emt 0:00:17]} 33. Qe8 {[%emt 0:00:09]} Rxa2 {[%emt 0:03:41]} 34. Re1 {[%emt 0:00:05]} Ra7 {[%emt 0:08:31]} 35. Bxe4 {[%emt 0:01:03]} Bxe4 {[%emt 0:01:07]} 36. Rxe4 {[%emt 0:00:19]} Ra8 {[%emt 0:02:08]} 37. Qxc6 {[%emt 0:01:29]} Rc8 {[%emt 0:02:27]} 38. Ne6+ {[%emt 0:04:33]} Kf6 {[%emt 0:00:34]} 39. Nc7+ {[%emt 0:00:13]} Kg7 {[%emt 0:00:13]} 40. Rf4 {[%emt 0:00:20]} Nd8 {[%emt 0:02:59]} 41. Qd6 {[%emt 0:05:07]} Nf7 {[%emt 0:02:30]} 42. Qe7 {[%emt 0:00:30]} Qb1+ {[%emt 0:00:30]} 43. Kh2 {[%emt 0:00:30]} Qg6 {[%emt 0:00:30]} 44. Qd7 {[%emt 0:02:30]} 1-0

[Event "ESTCC 50 2019"]
[Site "Mali Losinj"]
[Date "2019.09.21"]
[Round "4.2"]
[White "Priehoda, Vitezslav"]
[Black "Zelcic, Robert"]
[Result "1/2-1/2"]
[ECO "D00"]
[WhiteElo "2352"]
[BlackElo "2503"]
[Annotator "ChessBase"]
[PlyCount "89"]
[EventDate "2019.09.18"]
[EventType "team-tourn"]
[EventCountry "CRO"]
[SourceTitle "playchess.com"]
[Source "ChessBase"]
[SourceQuality "1"]
[WhiteTeam "Czech Republic"]
[BlackTeam "Croatia"]
[WhiteTeamCountry "CZE"]
[BlackTeamCountry "CRO"]
[TimeControl "40/5400+30:1800+30"]

1. d4 {[%emt 0:00:30]} d5 {[%emt 0:00:30]} 2. Nf3 {[%emt 0:00:00]} a6 {[%emt 0:00:00]} 3. Nc3 {[%emt 0:06:00]} Nf6 {[%emt 0:13:00]} 4. Bf4 {[%emt 0:02:30]} Bf5 {[%emt 0:03:30]} 5. e3 {[%emt 0:00:30]} e6 {[%emt 0:00:00]} 6. Bd3 {[%emt 0:15:30]} Bxd3 {[%emt 0:16:00]} 7. cxd3 {[%emt 0:01:30]} Nbd7 {[%emt 0:04:30]} 8. O-O {[%emt 0:07:30]} Be7 {[%emt 0:00:00]} 9. h3 {[%emt 0:00:30]} O-O {[%emt 0:00:00]} 10. Rc1 {[%emt 0:03:30]} b6 {[%emt 0:01:30]} 11. e4 {[%emt 0:02:30]} c6 {[%emt 0:02:30]} 12. Re1 {[%emt 0:04:30]} b5 {[%emt 0:01:30]} 13. Bg5 {[%emt 0:10:30]} Rc8 {[%emt 0:01:30]} 14. e5 {[%emt 0:03:30]} Ne8 {[%emt 0:02:30]} 15. Bxe7 {[%emt 0:00:30]} Qxe7 {[%emt 0:00:30]} 16. Nb1 {[%emt 0:00:30]} f5 {[%emt 0:04:30]} 17. exf6 {[%emt 0:01:30]} Rxf6 {[%emt 0:00:30]} 18. Nbd2 {[%emt 0:00:30]} c5 {[%emt 0:02:30]} 19. dxc5 {[%emt 0:00:30]} Rxc5 {[%emt 0:00:00]} 20. d4 {[%emt 0:00:30]} Rxc1 {[%emt 0:03:00]} 21. Qxc1 {[%emt 0:00:00]} Nf8 {[%emt 0:02:30]} 22. Qc6 {[%emt 0:05:00]} Qd7 {[%emt 0:00:30]} 23. Qxa6 {[%emt 0:04:30]} e5 {[%emt 0:01:30]} 24. Qa8 {[%emt 0:02:30]} Nc7 {[%emt 0:01:30]} 25. Qb7 {[%emt 0:01:30]} e4 {[%emt 0:00:30]} 26. Rc1 {[%emt 0:02:30]} Nce6 {[%emt 0:01:30]} 27. Qxd7 {[%emt 0:00:30]} Nxd7 {[%emt 0:00:00]} 28. Ne5 {[%emt 0:03:30]} Nxd4 {[%emt 0:00:00]} 29. Rc8+ {[%emt 0:00:30]} Rf8 {[%emt 0:02:30]} 30. Rxf8+ {[%emt 0:00:30]} Nxf8 {[%emt 0:00:30]} 31. Nb1 {[%emt 0:02:48]} Nfe6 {[%emt 0:06:30]} 32. Nc3 {[%emt 0:01:38]} Nc7 {[%emt 0:01:30]} 33. Kf1 {[%emt 0:08:43]} Kf8 {[%emt 0:00:30]} 34. Ne2 {[%emt 0:03:29]} Nc2 {[%emt 0:01:30]} 35. Nc6 {[%emt 0:00:12]} g6 {[%emt 0:06:30]} 36. Ned4 {[%emt 0:01:25]} Nxd4 {[%emt 0:00:00]} 37. Nxd4 {[%emt 0:00:02]} Ke7 {[%emt 0:00:00]} 38. Ke2 {[%emt 0:01:22]} Kd6 {[%emt 0:02:30]} 39. b4 {[%emt 0:01:33]} Ke5 {[%emt 0:06:16]} 40. Nc6+ {[%emt 0:01:43]} Kd6 {[%emt 0:00:05]} 41. Nd4 {[%emt 0:30:35]} Ke5 {[%emt 0:00:09]} 42. Ke3 {[%emt 0:00:00]} g5 {[%emt 0:00:30]} 43. Nc6+ {[%emt 0:00:00]} Kd6 {[%emt 0:00:30]} 44. Nd4 {[%emt 0:00:00]} Ke5 {[%emt 0:00:00]} 45. Nc6+ {[%emt 0:00:00]} 1/2-1/2

[Event "ESTCC 50 2019"]
[Site "Mali Losinj"]
[Date "2019.09.21"]
[Round "4.3"]
[White "Kurajica, Bojan"]
[Black "Vokac, Marek"]
[Result "1-0"]
[ECO "B07"]
[WhiteElo "2493"]
[BlackElo "2332"]
[Annotator "ChessBase"]
[PlyCount "95"]
[EventDate "2019.09.18"]
[EventType "team-tourn"]
[EventCountry "CRO"]
[SourceTitle "playchess.com"]
[Source "ChessBase"]
[SourceQuality "1"]
[WhiteTeam "Croatia"]
[BlackTeam "Czech Republic"]
[WhiteTeamCountry "CRO"]
[BlackTeamCountry "CZE"]
[TimeControl "40/5400+30:1800+30"]

1. Nf3 {[%emt 0:00:30]} g6 {[%emt 0:01:30]} 2. d4 {[%emt 0:00:30]} Bg7 {[%emt 0:00:30]} 3. e4 {[%emt 0:01:30]} d6 {[%emt 0:00:30]} 4. Bd3 {[%emt 0:01:30]} Nf6 {[%emt 0:01:30]} 5. O-O {[%emt 0:01:30]} O-O {[%emt 0:00:30]} 6. Re1 {[%emt 0:01:30]} Nc6 {[%emt 0:06:30]} 7. d5 {[%emt 0:00:30]} Nb4 {[%emt 0:01:30]} 8. Bf1 {[%emt 0:02:30]} c5 {[%emt 0:02:30]} 9. c3 {[%emt 0:09:30]} Na6 {[%emt 0:00:30]} 10. h3 {[%emt 0:00:30]} e6 {[%emt 0:15:30]} 11. dxe6 {[%emt 0:00:30]} Bxe6 {[%emt 0:00:00]} 12. Na3 {[%emt 0:02:30]} Nc7 {[%emt 0:07:00]} 13. Bf4 {[%emt 0:07:30]} d5 {[%emt 0:02:30]} 14. exd5 {[%emt 0:00:30]} Ncxd5 {[%emt 0:08:30]} 15. Be5 {[%emt 0:00:30]} Nh5 {[%emt 0:07:30]} 16. Bc4 {[%emt 0:09:30]} a6 {[%emt 0:03:30]} 17. Bxg7 {[%emt 0:02:30]} Nxg7 {[%emt 0:06:30]} 18. Re5 {[%emt 0:00:30]} Nb6 {[%emt 0:00:30]} 19. Bxe6 {[%emt 0:04:30]} Nxe6 {[%emt 0:00:00]} 20. Qe2 {[%emt 0:01:30]} Qf6 {[%emt 0:02:00]} 21. Qe4 {[%emt 0:01:30]} Rab8 {[%emt 0:11:59]} 22. Re1 {[%emt 0:01:30]} Rfd8 {[%emt 0:01:11]} 23. g3 {[%emt 0:10:30]} Rd7 {[%emt 0:03:05]} 24. Kg2 {[%emt 0:06:30]} Rbd8 {[%emt 0:00:04]} 25. Nc2 {[%emt 0:00:30]} Nd5 {[%emt 0:06:50]} 26. c4 {[%emt 0:04:30]} Nb4 {[%emt 0:03:14]} 27. Nxb4 {[%emt 0:00:30]} cxb4 {[%emt 0:00:01]} 28. c5 {[%emt 0:04:30]} a5 {[%emt 0:00:02]} 29. h4 {[%emt 0:01:30]} h6 {[%emt 0:00:34]} 30. h5 {[%emt 0:01:30]} g5 {[%emt 0:05:47]} 31. Rf5 {[%emt 0:00:30]} Qxb2 {[%emt 0:00:01]} 32. Ne5 {[%emt 0:02:38]} Nxc5 {[%emt 0:00:25]} 33. Qe3 {[%emt 0:00:38]} Nd3 {[%emt 0:02:22]} 34. Nxd7 {[%emt 0:00:31]} Nxe1+ {[%emt 0:01:00]} 35. Qxe1 {[%emt 0:00:13]} Qd4 {[%emt 0:00:35]} 36. Nf6+ {[%emt 0:00:38]} Kf8 {[%emt 0:00:51]} 37. Qe2 {[%emt 0:01:44]} b6 {[%emt 0:00:30]} 38. Qf3 {[%emt 0:00:29]} Qd3 {[%emt 0:00:51]} 39. Nd5 {[%emt 0:01:51]} Qxf3+ {[%emt 0:00:14]} 40. Kxf3 {[%emt 0:00:05]} Rd6 {[%emt 0:00:23]} 41. Ke4 {[%emt 0:01:13]} Rc6 {[%emt 0:06:31]} 42. Rf6 {[%emt 0:09:30]} Rc2 {[%emt 0:04:30]} 43. Rxh6 {[%emt 0:00:30]} Rxa2 {[%emt 0:00:30]} 44. Rxb6 {[%emt 0:00:30]} Rxf2 {[%emt 0:04:18]} 45. h6 {[%emt 0:00:30]} Re2+ {[%emt 0:00:15]} 46. Kf5 {[%emt 0:02:30]} Re8 {[%emt 0:00:03]} 47. Kxg5 {[%emt 0:09:30]} Ra8 {[%emt 0:00:54]} 48. Kf6 {[%emt 0:01:30]} 1-0